fUSD/lending_fUSD_20260316
["ID","MTS","AMOUNT","RATE_DAILY","PERIOD"]
[408463749,1773688242429,-151.0,0.0001689,2]
[408463750,1773688242438,-151.0,0.0001689,2]
[408463751,1773688242448,-151.0,0.0001689,2]
[408463752,1773688242458,-151.0,0.0001689,2]
[408463753,1773688242467,-151.0,0.0001689,2]
[408463754,1773688242477,-151.0,0.0001689,2]
[408463755,1773688242486,-151.0,0.0001689,2]
[408463756,1773688242496,-151.0,0.0001689,2]
[408463757,1773688242505,-1044.0,0.0001689,2]
[408463758,1773688242515,-163.477,0.0001689,2]
[408463759,1773688242525,-3511.0,0.0001689,2]
[408463760,1773688242536,-1358.88,0.0001689,2]
[408463761,1773688242545,-1600.0,0.00016891,2]
[408463762,1773688242555,-350.0,0.00016891,2]
[408463763,1773688242566,-609.0,0.00016892,2]
[408463764,1773688242576,-200.0,0.000169,2]
[408463765,1773688242586,-350.0,0.00016901,2]
[408463766,1773688242596,-609.0,0.00016905,2]
[408463767,1773688242607,-308.7218,0.00016913,2]
[408463768,1773688242617,-169.05273013,0.00016913,2]
[408463769,1773688242626,-761.24148575,0.00016913,2]
[408463770,1773688242635,-13790.56321533,0.00016913,2]
[408463771,1773688242645,-609.0,0.00016924,2]
[408463772,1773688242654,-151.0,0.00016926,2]
[408463773,1773688242663,-151.0,0.00016926,2]
[408463774,1773688242672,-294.560932,0.00016926,2]
[408463775,1773688242682,-151.0,0.00016926,2]
[408463776,1773688242691,-151.0,0.00016926,2]
[408463777,1773688242700,-1000.0,0.00016926,2]
[408463778,1773688242709,-736.0,0.0001697,2]
[408463779,1773688242719,-609.0,0.00016996,2]
[408463780,1773688242729,-300.0,0.00017,2]
[408463781,1773688242737,-515.0,0.00017,2]
[408463782,1773688242747,-951.31083957,0.00017003,2]
[408463783,1773688242755,-690.01041515,0.00017012,2]
[408463785,1773688242764,-300.0,0.00017012,2]
[408463787,1773688242773,-155.0,0.00017012,2]
[408463788,1773688242782,-2500000.0,0.00017013,2]
[408463789,1773688242792,-151.0,0.00017013,2]
[408463790,1773688242801,-151.0,0.00017013,2]
[408463791,1773688242810,-151.0,0.00017013,2]
[408463792,1773688242819,-151.0,0.00017013,2]
[408463793,1773688242828,-435.394067,0.00017013,2]
[408463794,1773688242837,-201.570915,0.00017013,2]
[408463795,1773688242846,-435.394067,0.00017013,2]
[408463796,1773688242858,-201.570915,0.00017013,2]
[408463797,1773688242867,-435.394067,0.00017013,2]
[408463798,1773688242876,-201.570915,0.00017013,2]
[408463800,1773688242885,-435.394067,0.00017013,2]
[408463802,1773688242894,-201.570915,0.00017013,2]
[408463804,1773688242905,-151.0,0.00017013,2]
[408463806,1773688242914,-151.0,0.00017013,2]
[408463807,1773688242924,-151.0,0.00017013,2]
[408463808,1773688242933,-151.0,0.00017013,2]
[408463809,1773688242942,-151.0,0.00017013,2]
[408463811,1773688242952,-151.0,0.00017013,2]
[408463813,1773688242961,-151.0,0.00017013,2]
[408463814,1773688242971,-155.667578,0.00017013,2]
[408463815,1773688242980,-151.0,0.00017013,2]
[408463816,1773688242989,-151.0,0.00017013,2]
[408463819,1773688243137,-151.0,0.00017013,2]
[408463820,1773688243148,-151.0,0.00017013,2]
[408463821,1773688243157,-660.686106,0.00017013,2]
[408463822,1773688243167,-660.686106,0.00017013,2]
[408463823,1773688243177,-660.686106,0.00017013,2]
[408463824,1773688243187,-660.686106,0.00017013,2]
[408463825,1773688243199,-2037.248474,0.00017013,2]
[408463826,1773688243208,-2037.248474,0.00017013,2]
[408463827,1773688243217,-2037.248474,0.00017013,2]
[408463828,1773688243226,-151.0,0.00017013,2]
[408463829,1773688243238,-2037.248474,0.00017013,2]
[408463830,1773688243247,-151.0,0.00017013,2]
[408463831,1773688243258,-186.181362,0.00017013,2]
[408463832,1773688243268,-151.0,0.00017013,2]
[408463833,1773688243278,-151.0,0.00017013,2]
[408463834,1773688243287,-151.0,0.00017013,2]
[408463835,1773688243296,-151.0,0.00017013,2]
[408463836,1773688243305,-1852.579991,0.00017013,2]
[408463837,1773688243315,-1852.579991,0.00017013,2]
[408463838,1773688243324,-1852.579991,0.00017013,2]
[408463839,1773688243334,-1852.579991,0.00017013,2]
[408463840,1773688243343,-973.399919,0.00017013,2]
[408463841,1773688243352,-973.399919,0.00017013,2]
[408463842,1773688243364,-973.399919,0.00017013,2]
[408463843,1773688243373,-973.399919,0.00017013,2]
[408463844,1773688243383,-4014.275,0.0001702,2]
[408463845,1773688243392,-170.228,0.0001702,2]
[408463846,1773688243401,-500.0,0.00017025,2]
[408463847,1773688243410,-500.0,0.00017025,2]
[408463848,1773688243420,-500.0,0.00017025,2]
[408463849,1773688243429,-500.0,0.00017025,2]
[408463850,1773688243438,-500.0,0.00017025,2]
[408463851,1773688243447,-500.0,0.00017025,2]
[408463852,1773688243457,-500.0,0.00017025,2]
[408463853,1773688243466,-500.0,0.00017025,2]
[408463854,1773688243475,-500.0,0.00017025,2]
[408463856,1773688243484,-500.0,0.00017025,2]
[408463857,1773688243494,-500.0,0.00017025,2]
[408463859,1773688243503,-500.0,0.00017025,2]
[408463861,1773688243513,-500.0,0.00017025,2]
[408463862,1773688243522,-500.0,0.00017025,2]
[408463864,1773688243531,-316.16,0.00017051,2]
[408463866,1773688243540,-609.0,0.00017056,2]
[408463867,1773688243549,-783.3,0.00017058,2]
[408463869,1773688243558,-288.44,0.00017071,2]
[408463870,1773688243568,-500.0,0.00017073,2]
[408463871,1773688243577,-492.69437203,0.00017073,2]
[408463872,1773688243587,-504.23644602,0.00017073,2]
[408463873,1773688243596,-500.0,0.00017073,2]
[408463874,1773688243605,-500.57919258,0.00017073,2]
[408463875,1773688243614,-500.0,0.00017073,2]
[408463876,1773688243623,-500.0,0.00017073,2]
[408463877,1773688243632,-501.3214937,0.00017073,2]
[408463879,1773688243640,-500.0,0.00017073,2]
[408463880,1773688243649,-500.0,0.00017073,2]
[408463882,1773688243658,-500.0,0.00017073,2]
[408463885,1773688243667,-502.66188252,0.00017073,2]
[408463888,1773688243676,-500.0,0.00017073,2]
[408463889,1773688243685,-500.0,0.00017073,2]
[408463891,1773688243694,-500.0,0.00017073,2]
[408463893,1773688243703,-246.25182677,0.00017073,2]
[408463895,1773688243712,-197.79386672,0.00017073,2]
[408463897,1773688243722,-500.0,0.00017073,2]
[408463898,1773688243731,-500.0,0.00017073,2]
[408463900,1773688243740,-500.0,0.00017073,2]
[408463902,1773688243750,-500.0,0.00017073,2]
[408463904,1773688243759,-162.30677567,0.00017073,2]
[408463905,1773688243768,-274.138,0.00017086,2]
[408463907,1773688243777,-1260.0,0.00017086,2]
[408463909,1773688243786,-1214.0,0.00017086,2]
[408463912,1773688243794,-939.582,0.00017086,2]
[408463915,1773688243803,-2464.0,0.00017086,2]
[408463918,1773688243812,-422.957,0.00017086,2]
[408463919,1773688243821,-6003.0,0.00017086,2]
[408463921,1773688243831,-10389.54111183,0.000171,2]
[408463923,1773688243840,-151.0,0.00017113,2]
[408463925,1773688243849,-358.9914905,0.00017113,2]
[408463926,1773688243859,-159.0,0.00017113,3]
[408463928,1773688243869,-13321.54818618,0.00017113,2]
[408463930,1773688243879,-6079.9912,0.00017126,2]
[408463931,1773688243888,-845.0,0.00017144,5]
[408463932,1773688243897,-2745.0,0.00017148,5]
[408463933,1773688243906,-200.0,0.00017168,2]
[408463934,1773688243915,-1500.0,0.00017182,7]
[408463935,1773688243924,-1500.0,0.00017182,7]
[408463936,1773688243934,-3786.8011339,0.00017208,2]
[408463937,1773688243943,-561.0,0.00017213,2]
[408463938,1773688243952,-150.0,0.00017213,2]
[408463939,1773688243961,-150.0,0.00017213,2]
[408463940,1773688243970,-500.0,0.00017213,2]
[408463941,1773688243979,-753.0,0.00017213,2]
[408463942,1773688243988,-275.92150742,0.00017215,2]
[408463943,1773688243998,-1035.89892511,0.00017224,2]
[408463944,1773688244007,-500.0,0.00017226,2]
[408463945,1773688244017,-953.42614139,0.00017231,2]
[408463946,1773688244026,-192.27709371,0.00017235,2]
[408463947,1773688244035,-1000.0,0.0001724,2]
[408463948,1773688244044,-1000.0,0.00017259,2]
[408463949,1773688244054,-1226851.24107982,0.0001726,2]
[408463950,1773688244070,-42606.60035458,0.0001726,2]
[408463951,1773688244081,-31643.40221175,0.0001726,2]
[408463952,1773688244093,-7405.69999999,0.0001726,2]
[408463953,1773688244158,-130.70303592,0.0001726,2]
[408463954,1773688244187,-6619.12279147,0.0001726,2]
[408463955,1773688244361,-44334.84849475,0.0001726,2]
[408463956,1773688244373,-4799.5887045,0.0001726,2]
[408463957,1773688244392,-3198.30186302,0.0001726,2]
[408463958,1773688244415,-3546.29977,0.0001726,2]
[408463959,1773688244426,-2401.99999999,0.0001726,2]
[408463961,1773688246103,-151.0,0.00016337,2]
[408463962,1773688246115,-2172.59999993,0.0001726,2]
[408463963,1773688246157,-151.0,0.00017013,2]
[408463964,1773688246167,-2731.70505513,0.0001726,2]
[408463965,1773688246179,-821.05374955,0.0001726,2]
[408463966,1773688246192,-752.48,0.0001726,2]
[408463967,1773688246267,-64908.51625264,0.0001726,2]
[408463983,1773689432274,-282.29565341,0.000112,2]
[408463984,1773689432284,-216.3125137,0.000112,2]
[408463986,1773689432295,-286.3287088,0.000112,2]
[408463988,1773689432303,-242.0,0.000112,2]
[408463990,1773689432313,-250.0,0.00011268,2]
[408463993,1773689432322,-216.07565441,0.00011504,2]
[408463996,1773689432331,-250.0,0.00011593,2]
[408463999,1773689432341,-300.0,0.00012319,2]
[408464002,1773689432350,-1200.0,0.00012319,2]
[408464005,1773689432359,-159.0,0.00012319,2]
[408464007,1773689432368,-300.0,0.00012319,2]
[408464009,1773689432377,-250.0,0.0001232,2]
[408464010,1773689432387,-153.46184497,0.0001232,2]
[408464011,1773689432396,-216.07565439,0.00012875,2]
[408464012,1773689432405,-1500.0,0.00013279,2]
[408464013,1773689432415,-500.0,0.00013415,2]
[408464014,1773689432424,-200.0,0.00013497,2]
[408464015,1773689432433,-420.0,0.00013519,2]
[408464016,1773689432442,-1680.0,0.00013551,2]
[408464017,1773689432451,-948.0,0.00013611,2]
[408464018,1773689432461,-200.0,0.00013699,2]
[408464019,1773689432471,-500.0,0.00013726,2]
[408464020,1773689432480,-269.57,0.00013757,2]
[408464021,1773689432489,-371.98,0.00013933,2]
[408464022,1773689432499,-17835.28093846,0.00014245,2]
[408464023,1773689432508,-216.07565439,0.00014245,2]
[408464024,1773689432518,-150.0,0.00014251,2]
[408464025,1773689432531,-8359.83513827,0.00014252,2]
[408464026,1773689432540,-3875.32749784,0.00014262,2]
[408464027,1773689432549,-18629.13,0.00014329,2]
[408464028,1773689432559,-151.0,0.00014338,2]
[408464029,1773689432568,-151.0,0.00014338,2]
[408464030,1773689432578,-151.0,0.00014338,2]
[408464031,1773689432587,-151.0,0.00014338,2]
[408464032,1773689432598,-151.0,0.00014338,2]
[408464033,1773689432607,-151.0,0.00014338,2]
[408464034,1773689432617,-151.0,0.00014338,2]
[408464035,1773689432626,-151.0,0.00014338,2]
[408464036,1773689432635,-151.0,0.00014338,2]
[408464038,1773689432644,-151.0,0.00014338,2]
[408464039,1773689432654,-151.0,0.00014338,2]
[408464040,1773689432663,-200.0,0.00014338,2]
[408464041,1773689432672,-193.44146046,0.00014343,2]
[408464043,1773689432682,-2307.70049163,0.00014343,2]
[408464045,1773689432692,-2307.70049163,0.00014343,2]
[408464047,1773689432702,-2307.70049163,0.00014343,2]
[408464049,1773689432710,-2307.70049163,0.00014343,2]
[408464051,1773689432719,-2307.70049163,0.00014343,2]
[408464053,1773689432728,-2307.70049163,0.00014343,2]
[408464055,1773689432737,-2307.70049163,0.00014343,2]
[408464057,1773689432748,-2307.70049163,0.00014343,2]
[408464058,1773689432757,-2307.70049163,0.00014343,2]
[408464059,1773689432910,-2307.70049163,0.00014343,2]
[408464060,1773689432919,-2307.70049163,0.00014343,2]
[408464061,1773689432929,-2307.70049163,0.00014343,2]
[408464062,1773689432938,-2307.70049163,0.00014343,2]
[408464063,1773689432947,-2307.70049163,0.00014343,2]
[408464064,1773689432956,-2307.70049163,0.00014343,2]
[408464065,1773689432966,-2307.70049163,0.00014343,2]
[408464066,1773689432975,-2307.70049163,0.00014343,2]
[408464067,1773689432984,-2307.70049163,0.00014343,2]
[408464068,1773689432994,-2307.70049163,0.00014343,2]
[408464069,1773689433003,-2307.70049163,0.00014343,2]
[408464070,1773689433012,-2307.70049163,0.00014343,2]
[408464071,1773689433021,-2307.70049163,0.00014343,2]
[408464072,1773689433030,-2307.70049163,0.00014343,2]
[408464073,1773689433039,-2307.70049163,0.00014343,2]
[408464074,1773689433048,-2307.70049163,0.00014343,2]
[408464075,1773689433056,-2307.70049163,0.00014343,2]
[408464076,1773689433065,-2307.70049163,0.00014343,2]
[408464077,1773689433074,-2307.70049163,0.00014343,2]
[408464078,1773689433083,-2307.70049163,0.00014343,2]
[408464079,1773689433093,-2307.70049163,0.00014343,2]
[408464080,1773689433102,-2307.70049163,0.00014343,2]
[408464081,1773689433110,-2307.70049163,0.00014343,2]
[408464082,1773689433119,-2307.70049163,0.00014343,2]
[408464083,1773689433128,-2307.70049163,0.00014343,2]
[408464084,1773689433137,-2307.70049163,0.00014343,2]
[408464085,1773689433147,-2307.70049163,0.00014343,2]
[408464086,1773689433156,-2307.70049163,0.00014343,2]
[408464087,1773689433166,-2307.70049163,0.00014343,2]
[408464088,1773689433176,-2307.70049163,0.00014343,2]
[408464089,1773689433186,-2307.70049163,0.00014343,2]
[408464090,1773689433195,-2320.52104993,0.00014343,2]
[408464091,1773689433204,-2320.52104993,0.00014343,2]
[408464092,1773689433213,-2320.52104993,0.00014343,2]
[408464093,1773689433223,-2320.52104993,0.00014343,2]
[408464094,1773689433232,-2320.52104993,0.00014343,2]
[408464095,1773689433240,-164.60994341,0.00014343,2]
[408464096,1773689433253,-2155.91110652,0.00014343,2]
[408464097,1773689433262,-2320.52104993,0.00014343,2]
[408464098,1773689433271,-2320.52104993,0.00014343,2]
[408464099,1773689433280,-841.55,0.00014345,2]
[408464100,1773689433290,-500.0,0.00014345,2]
[408464101,1773689433300,-28878.24510584,0.00014346,2]
[408464102,1773689433414,-206332.74489416,0.00014346,2]
[408464103,1773689433423,-166.57,0.00014363,2]
[408464104,1773689433433,-500.0,0.00014373,2]
[408464105,1773689433442,-500.0,0.00014373,2]
[408464106,1773689433453,-500.0,0.00014373,2]
[408464107,1773689433462,-500.0,0.00014373,2]
[408464108,1773689433471,-220.12591944,0.00014373,2]
[408464109,1773689433483,-500.0,0.00014373,2]
[408464110,1773689433494,-500.0,0.00014373,2]
[408464111,1773689433503,-500.46927556,0.00014373,2]
[408464112,1773689433513,-500.0,0.00014373,2]
[408464113,1773689433528,-501.38283497,0.00014373,2]
[408464114,1773689433536,-500.0,0.00014373,2]
[408464115,1773689433547,-500.0,0.00014373,2]
[408464116,1773689433556,-500.0,0.00014373,2]
[408464117,1773689433566,-500.0,0.00014373,2]
[408464118,1773689433575,-500.0,0.00014373,2]
[408464119,1773689433585,-500.0,0.00014373,2]
[408464120,1773689433594,-500.0,0.00014373,2]
[408464121,1773689433604,-500.0,0.00014373,2]
[408464122,1773689433613,-316.45219535,0.00014435,2]
[408464123,1773689433623,-475.76245277,0.00014435,2]
[408464124,1773689433632,-500.0,0.00014435,2]
[408464125,1773689433641,-500.0,0.00014435,2]
[408464126,1773689433651,-500.0,0.00014435,2]
[408464127,1773689433660,-500.0,0.00014435,2]
[408464128,1773689433669,-466.40334991,0.00014435,2]
[408464129,1773689433678,-500.0,0.00014435,2]
[408464130,1773689433687,-500.0,0.00014435,2]
[408464131,1773689433697,-500.0,0.00014435,2]
[408464132,1773689433706,-500.0,0.00014435,2]
[408464133,1773689433716,-500.0,0.00014435,2]
[408464134,1773689433726,-24324.16,0.00014437,2]
[408464135,1773689433736,-17835.28093839,0.0001455,2]
[408464136,1773689433745,-841.55,0.00014619,2]
[408464137,1773689433754,-500.0,0.00014619,2]
[408464138,1773689433763,-500.0,0.00014822,2]
[408464139,1773689433772,-587.0,0.00014836,2]
[408464140,1773689433781,-17835.28093839,0.00014855,2]
[408464141,1773689433791,-200.0,0.00014886,2]
[408464142,1773689433801,-841.55,0.00014893,2]
[408464143,1773689433811,-500.0,0.00014893,2]
[408464144,1773689433820,-2351.0,0.00014906,2]
[408464145,1773689433829,-1000.0,0.00014909,2]
[408464146,1773689433839,-426.7448821,0.00014921,2]
[408464147,1773689433848,-1000.0,0.00014921,2]
[408464148,1773689433857,-544.01370364,0.00014921,2]
[408464149,1773689433870,-1000.0,0.00014921,2]
[408464150,1773689433879,-619.71855644,0.00014921,2]
[408464151,1773689433889,-1001.50584164,0.00014921,2]
[408464152,1773689433899,-1000.0,0.00014921,2]
[408464153,1773689433908,-289.40070091,0.00014921,2]
[408464154,1773689433917,-1008.38874979,0.00014921,2]
[408464155,1773689433927,-1000.0,0.00014921,2]
[408464156,1773689433936,-1000.0,0.00014921,2]
[408464157,1773689433945,-343.08234325,0.00014921,2]
[408464158,1773689433955,-1000.0,0.00014921,2]
[408464159,1773689433964,-250.0,0.00015,2]
[408464160,1773689433973,-3875.32749777,0.00015067,2]
[408464161,1773689433982,-166.66,0.00015108,2]
[408464162,1773689433991,-17835.28093839,0.0001516,2]
[408464163,1773689434000,-841.55,0.00015167,2]
[408464164,1773689434009,-255.0,0.00015377,2]
[408464165,1773689434018,-166.66,0.00015426,2]
[408464166,1773689434028,-200.0,0.00015434,2]
[408464167,1773689434037,-841.55,0.00015441,2]
[408464168,1773689434047,-17835.28093839,0.00015465,2]
[408464169,1773689434056,-1500.0,0.00015468,2]
[408464170,1773689434065,-1500.0,0.00015468,2]
[408464171,1773689434074,-1500.0,0.00015468,2]
[408464172,1773689434084,-504.38182692,0.00015468,2]
[408464173,1773689434094,-1500.0,0.00015468,2]
[408464174,1773689434103,-1006.42760695,0.00015468,2]
[408464175,1773689434115,-151.0,0.00015707,2]
[408464176,1773689434125,-841.55,0.00015715,2]
[408464177,1773689434135,-166.66,0.00015744,2]
[408464178,1773689434144,-17835.28093839,0.0001577,2]
[408464179,1773689434154,-152.0,0.00015787,3]
[408464180,1773689434164,-248.50745714,0.00015818,2]
[408464181,1773689434173,-3875.32749777,0.00015873,2]
[408464182,1773689434183,-153.13141231,0.00015873,2]
[408464183,1773689434191,-2000.0,0.0001589,2]
[408464184,1773689434200,-151.0,0.0001591,2]
[408464185,1773689434210,-151.0,0.0001591,2]
[408464186,1773689434219,-151.0,0.0001591,2]
[408464187,1773689434228,-1151.278279,0.00015912,5]
[408464188,1773689434237,-500.0,0.00015913,2]
[408464189,1773689434246,-500.0,0.00015913,2]
[408464190,1773689434255,-500.0,0.00015913,2]
[408464191,1773689434265,-500.0,0.00015913,2]
[408464192,1773689434274,-500.0,0.00015913,2]
[408464193,1773689434283,-500.0,0.00015913,2]
[408464194,1773689434292,-500.0,0.00015913,2]
[408464195,1773689434302,-500.00078655,0.00015913,2]
[408464196,1773689434311,-500.0,0.00015913,2]
[408464197,1773689434320,-500.0,0.00015913,2]
[408464198,1773689434330,-500.0,0.00015913,2]
[408464199,1773689434339,-500.0,0.00015913,2]
[408464200,1773689434349,-500.0,0.00015913,2]
[408464201,1773689434358,-500.0,0.00015913,2]
[408464202,1773689434372,-500.0,0.00015913,2]
[408464203,1773689434382,-500.0,0.00015913,2]
[408464204,1773689434392,-500.0,0.00015913,2]
[408464205,1773689434401,-500.0,0.00015913,2]
[408464206,1773689434411,-500.0,0.00015913,2]
[408464207,1773689434421,-500.0,0.00015913,2]
[408464208,1773689434431,-500.0,0.00015913,2]
[408464209,1773689434441,-500.0,0.00015913,2]
[408464210,1773689434450,-500.0,0.00015913,2]
[408464211,1773689434460,-500.0,0.00015913,2]
[408464212,1773689434469,-500.0,0.00015913,2]
[408464213,1773689434479,-500.0,0.00015913,2]
[408464214,1773689434488,-500.0,0.00015913,2]
[408464215,1773689434498,-500.0,0.00015913,2]
[408464216,1773689434507,-500.0,0.00015913,2]
[408464217,1773689434517,-501.50298323,0.00015913,2]
[408464218,1773689434531,-500.0,0.00015913,2]
[408464219,1773689434541,-500.0,0.00015913,2]
[408464220,1773689434551,-500.0,0.00015913,2]
[408464221,1773689434562,-500.0,0.00015913,2]
[408464222,1773689434572,-500.0,0.00015913,2]
[408464223,1773689434581,-500.0,0.00015913,2]
[408464224,1773689434590,-500.0,0.00015913,2]
[408464225,1773689434601,-500.0,0.00015913,2]
[408464226,1773689434611,-500.0,0.00015913,2]
[408464227,1773689434620,-5000.0,0.0001596,2]
[408464228,1773689434630,-500.6837383,0.00015973,2]
[408464229,1773689434639,-164.60767806,0.00015973,2]
[408464230,1773689434648,-500.0,0.00015973,2]
[408464231,1773689434657,-500.0,0.00015973,2]
[408464232,1773689434667,-500.0,0.00015973,2]
[408464233,1773689434676,-500.0,0.00015973,2]
[408464234,1773689434686,-501.14795082,0.00015973,2]
[408464235,1773689434696,-500.0,0.00015973,2]
[408464236,1773689434705,-500.0,0.00015973,2]
[408464237,1773689434714,-500.0,0.00015973,2]
[408464238,1773689434723,-500.0,0.00015973,2]
[408464239,1773689434732,-500.0,0.00015973,2]
[408464240,1773689434741,-500.0,0.00015973,2]
[408464241,1773689434750,-200.0,0.00015982,2]
[408464242,1773689434759,-841.55,0.00015989,2]
[408464243,1773689434768,-209.357476,0.00016,2]
[408464244,1773689434778,-500.0,0.00016013,2]
[408464245,1773689434788,-500.0,0.00016013,2]
[408464246,1773689434797,-500.0,0.00016013,2]
[408464247,1773689434806,-500.0,0.00016013,2]
[408464248,1773689434816,-500.0,0.00016013,2]
[408464249,1773689434825,-501.3548295,0.00016016,2]
[408464250,1773689434834,-2000.0,0.00016016,2]
[408464251,1773689434843,-2000.0,0.00016016,2]
[408464252,1773689434852,-2000.0,0.00016016,2]
[408464253,1773689434862,-166.66,0.00016062,2]
[408464254,1773689434872,-17835.28093839,0.00016075,2]
[408464255,1773689434881,-407.665166,0.00016094,7]
[408464256,1773689434891,-500.0,0.00016129,2]
[408464257,1773689434900,-160.0,0.0001615,7]
[408464258,1773689434910,-258.583128,0.0001615,7]
[408464259,1773689434920,-357.166256,0.0001615,7]
[408464260,1773689434929,-367.850025,0.0001615,7]
[408464261,1773689434938,-7913.37881624,0.00016162,2]
[408464262,1773689434947,-5000.0,0.00016162,2]
[408464263,1773689434956,-500.0,0.00016169,2]
[408464264,1773689434965,-500.0,0.00016169,2]
[408464265,1773689434975,-500.0,0.00016169,2]
[408464266,1773689434985,-500.0,0.00016169,2]
[408464267,1773689434994,-500.0,0.00016169,2]
[408464268,1773689435003,-500.0,0.00016169,2]
[408464269,1773689435012,-500.0,0.00016169,2]
[408464270,1773689435021,-565.08716826,0.00016169,2]
[408464271,1773689435031,-500.0,0.00016169,2]
[408464272,1773689435040,-500.0,0.00016169,2]
[408464273,1773689435050,-500.0,0.00016169,2]
[408464274,1773689435059,-500.0,0.00016169,2]
[408464275,1773689435070,-500.0,0.00016169,2]
[408464276,1773689435080,-500.0,0.00016169,2]
[408464277,1773689435091,-500.0,0.00016169,2]
[408464278,1773689435100,-526.89512762,0.00016169,2]
[408464279,1773689435110,-500.0,0.00016169,2]
[408464280,1773689435120,-500.0,0.00016169,2]
[408464281,1773689435130,-500.0,0.00016169,2]
[408464282,1773689435139,-500.0,0.00016169,2]
[408464283,1773689435149,-568.64936411,0.00016169,2]
[408464284,1773689435159,-822.04,0.00016169,2]
[408464285,1773689435168,-160.001268,0.0001619,7]
[408464286,1773689435179,-500.0,0.00016233,2]
[408464287,1773689435188,-500.0,0.00016233,2]
[408464288,1773689435197,-411.93023927,0.00016233,2]
[408464289,1773689435207,-500.0,0.00016233,2]
[408464290,1773689435217,-311.88705213,0.00016233,2]
[408464291,1773689435226,-500.42197752,0.00016233,2]
[408464292,1773689435236,-500.0,0.00016233,2]
[408464293,1773689435246,-500.0,0.00016233,2]
[408464294,1773689435255,-500.0,0.00016233,2]
[408464295,1773689435266,-500.0,0.00016233,2]
[408464296,1773689435275,-500.4316981,0.00016233,2]
[408464297,1773689435286,-500.0,0.00016233,2]
[408464298,1773689435295,-500.0,0.00016233,2]
[408464299,1773689435305,-500.0,0.00016233,2]
[408464300,1773689435315,-500.0,0.00016233,2]
[408464301,1773689435449,-500.0,0.0001625,2]
[408464302,1773689435460,-500.0,0.0001625,2]
[408464303,1773689435470,-500.0,0.0001625,2]
[408464304,1773689435480,-500.57919258,0.0001625,2]
[408464305,1773689435490,-500.0,0.0001625,2]
[408464306,1773689435499,-500.0,0.0001625,2]
[408464307,1773689435508,-162.30677567,0.0001625,2]
[408464308,1773689435523,-500.0,0.0001625,2]
[408464309,1773689435533,-841.55,0.00016263,2]
[408464310,1773689435543,-168.0,0.00016276,2]
[408464311,1773689435552,-786.6527,0.000163,2]
[408464312,1773689435563,-226.25868546,0.00016313,2]
[408464313,1773689435573,-488.86945979,0.00016337,2]
[408464314,1773689435582,-940.85445282,0.00016337,2]
[408464315,1773689435593,-1208.77957433,0.00016337,2]
[408464316,1773689435603,-1483.42040625,0.00016337,2]
[408464317,1773689435613,-349.347814,0.00016345,7]
[408464318,1773689435623,-12895.88924913,0.0001636,2]
[408464319,1773689435632,-500.0,0.0001636,2]
[408464320,1773689435643,-500.0,0.0001636,2]
[408464321,1773689435652,-500.0,0.0001636,2]
[408464322,1773689435661,-500.0,0.0001636,2]
[408464323,1773689435671,-500.0,0.0001636,2]
[408464324,1773689435680,-181.08010149,0.0001636,2]
[408464325,1773689435690,-500.0,0.0001636,2]
[408464326,1773689435700,-500.0,0.0001636,2]
[408464327,1773689435709,-500.0,0.0001636,2]
[408464328,1773689435718,-500.0,0.0001636,2]
[408464329,1773689435728,-500.0,0.0001636,2]
[408464330,1773689435738,-250.0,0.0001636,2]